bitfinex/quotes_BTCUSD_20240101
["timestamp","ask_amount","ask_price","bid_price","bid_amount"]
[1704078991584,1.12183212,42540.0,42539.0,0.00016]
[1704078994187,0.65168712,42540.0,42539.0,0.00016]
[1704078994409,1.12183212,42540.0,42539.0,0.00016]
[1704079001353,1.15920557,42540.0,42539.0,0.00016]
[1704079001611,1.76365057,42540.0,42539.0,0.00016]
[1704079001784,0.82336057,42540.0,42539.0,0.00016]
[1704079001993,1.37742278,42540.0,42539.0,0.00016]
[1704079002357,1.34956173,42540.0,42539.0,0.00016]
[1704079002550,2.62803829,42540.0,42539.0,0.00016]
[1704079002779,2.51419283,42540.0,42539.0,0.00016]
[1704079004610,1.82208021,42540.0,42539.0,0.00016]
[1704079004816,1.90617458,42540.0,42539.0,0.00016]
[1704079005022,1.81918021,42540.0,42539.0,0.00016]
[1704079005236,1.87814488,42540.0,42539.0,0.00016]
[1704079005633,0.93785488,42540.0,42539.0,0.00016]
[1704079005839,1.87814488,42540.0,42539.0,0.00016]
[1704079007954,1.82208021,42540.0,42539.0,0.00016]
[1704079009018,2.02292783,42540.0,42539.0,0.00016]
[1704079009530,2.05079329,42540.0,42539.0,0.00016]
[1704079011346,1.91082021,42540.0,42539.0,0.00016]
[1704079011798,2.05109542,42540.0,42539.0,0.00016]
[1704079012012,1.91082021,42540.0,42539.0,0.00016]
[1704079012667,2.05110445,42540.0,42539.0,0.00016]
[1704079012890,1.96236445,42540.0,42539.0,0.00016]
[1704079014842,1.24734972,42540.0,42539.0,0.00016]
[1704079015059,1.15506572,42540.0,42539.0,0.00016]
[1704079015274,1.20067627,42540.0,42539.0,0.00016]
[1704079015767,1.06727212,42540.0,42539.0,0.00016]
[1704079015980,1.12339776,42540.0,42539.0,0.00016]
[1704079017099,1.20553627,42540.0,42539.0,0.00016]
[1704079017528,1.12135212,42540.0,42539.0,0.00016]
[1704079017745,1.20553627,42540.0,42539.0,0.00016]
[1704079018167,1.12135212,42540.0,42539.0,0.00016]
[1704079018383,1.20553627,42540.0,42539.0,0.00016]
[1704079018593,1.20553129,42540.0,42539.0,0.00016]
[1704079019258,1.12135212,42540.0,42539.0,0.00016]
[1704079019473,1.20553129,42540.0,42539.0,0.00016]
[1704079020373,1.29398612,42540.0,42539.0,0.00016]
[1704079020911,1.32200981,42540.0,42539.0,0.00016]
[1704079021157,1.26592232,42540.0,42539.0,0.00016]
[1704079021409,1.18172557,42540.0,42539.0,0.00016]
[1704079021649,1.26593296,42540.0,42539.0,0.00016]
[1704079022117,1.26303296,42540.0,42539.0,0.00016]
[1704079022358,1.26593296,42540.0,42539.0,0.00016]
[1704079022604,1.18172557,42540.0,42539.0,0.00016]
[1704079023560,1.29398647,42540.0,42539.0,0.00016]
[1704079024188,1.29108647,42540.0,42539.0,0.00016]
[1704079024400,1.29398647,42540.0,42539.0,0.00016]
[1704079025976,1.12362415,42540.0,42539.0,0.00016]
[1704079026195,1.1243336,42540.0,42539.0,0.00016]
[1704079026612,1.09553632,42540.0,42539.0,0.00016]
[1704079027506,1.03936211,42540.0,42539.0,0.00016]
[1704079027721,1.09553632,42540.0,42539.0,0.00016]
[1704079029218,1.03936211,42540.0,42539.0,0.00016]
[1704079029438,1.12362415,42540.0,42539.0,0.00016]
[1704079030079,1.16898415,42540.0,42539.0,0.00016]
[1704079031721,1.08472211,42540.0,42539.0,0.00016]
[1704079031936,1.03936211,42540.0,42539.0,0.00016]
[1704079032147,1.08514211,42540.0,42539.0,0.00016]
[1704079032369,1.16940415,42540.0,42539.0,0.00016]
[1704079032866,1.12362415,42540.0,42539.0,0.00016]
[1704079033089,1.09548309,42540.0,42539.0,0.00016]
[1704079033540,1.17780415,42540.0,42539.0,0.00016]
[1704079035807,1.37748373,42540.0,42539.0,0.00016]
[1704079036023,1.26522283,42540.0,42539.0,0.00016]
[1704079036473,1.21509318,42540.0,42539.0,0.00016]
[1704079037609,1.13091556,42540.0,42539.0,0.00016]
[1704079037837,1.07673556,42540.0,42539.0,0.00016]
[1704079038281,1.42441085,42540.0,42539.0,0.00016]
[1704079038497,1.39635522,42540.0,42539.0,0.00016]
[1704079039241,1.39635202,42540.0,42539.0,0.00016]
[1704079039468,1.39635347,42540.0,42539.0,0.00016]
[1704079039935,1.31217574,42540.0,42539.0,0.00016]
[1704079040177,1.42440923,42540.0,42539.0,0.00016]
[1704079040640,1.31217574,42540.0,42539.0,0.00016]
[1704079040864,1.45245998,42540.0,42539.0,0.00016]
[1704079041553,1.31217574,42540.0,42539.0,0.00016]
[1704079042463,1.15384654,42540.0,42539.0,0.00016]
[1704079042909,0.94759074,42540.0,42539.0,0.00016]
[1704079044387,1.11589458,42540.0,42539.0,0.00016]
[1704079044604,1.58603958,42540.0,42539.0,0.00016]
[1704079045869,0.94759074,42540.0,42539.0,0.00016]
[1704079046825,1.41773574,42540.0,42539.0,0.00016]
[1704079049708,1.38069069,42540.0,42539.0,0.00016]
[1704079049916,1.26849574,42540.0,42539.0,0.00016]
[1704079050125,1.38068968,42540.0,42539.0,0.00016]
[1704079050360,1.2448495,42540.0,42539.0,0.00016]
[1704079050576,1.09546591,42540.0,42539.0,0.00016]
[1704079050789,1.13283936,42540.0,42539.0,0.00016]
[1704079051003,1.19591936,42540.0,42539.0,0.00016]
[1704079051435,1.15564393,42540.0,42539.0,0.00016]
[1704079051647,0.26921711,42540.0,42539.0,0.00016]
[1704079052729,0.25121711,42540.0,42539.0,0.00016]
[1704079052944,0.55121711,42540.0,42539.0,0.00016]
[1704079053416,0.53321711,42540.0,42539.0,0.00016]
[1704079053631,0.54921711,42540.0,42539.0,0.00016]
[1704079053843,0.53321711,42540.0,42539.0,0.00016]
[1704079054289,0.56521711,42540.0,42539.0,0.00016]
[1704079054514,0.55121711,42540.0,42539.0,0.00016]
[1704079054729,0.54721711,42540.0,42539.0,0.00016]
[1704079055158,0.56321711,42540.0,42539.0,0.00016]
[1704079057745,1.03336211,42540.0,42539.0,0.00016]
[1704079063529,1.38411218,42540.0,42539.0,0.00016]
[1704079063747,1.35605329,42540.0,42539.0,0.00016]
[1704079063959,1.29781824,42540.0,42539.0,0.00016]
[1704079064171,1.86582324,42540.0,42539.0,0.00016]
[1704079064600,1.87964324,42540.0,42539.0,0.00016]
[1704079065025,1.89764324,42540.0,42539.0,0.00016]
[1704079065244,0.95735324,42540.0,42539.0,0.00016]
[1704079065462,2.00584883,42540.0,42539.0,0.00016]
[1704079065670,2.02384883,42540.0,42539.0,0.00016]
[1704079065890,1.92598883,42540.0,42539.0,0.00016]
[1704079066108,1.94398883,42540.0,42539.0,0.00016]
[1704079066315,1.92598883,42540.0,42539.0,0.00016]
[1704079066543,1.80378324,42540.0,42539.0,0.00016]
[1704079066749,1.94398883,42540.0,42539.0,0.00016]
[1704079066961,1.88928324,42540.0,42539.0,0.00016]
[1704079067180,1.80378324,42540.0,42539.0,0.00016]
[1704079067436,1.88952324,42540.0,42539.0,0.00016]
[1704079067643,1.91595101,42540.0,42539.0,0.00016]
[1704079067846,1.88796324,42540.0,42539.0,0.00016]
[1704079068059,2.00012963,42540.0,42539.0,0.00016]
[1704079068270,1.91594963,42540.0,42539.0,0.00016]
[1704079068951,1.80378324,42540.0,42539.0,0.00016]
[1704079069152,1.88790941,42540.0,42539.0,0.00016]
[1704079069363,1.97262941,42540.0,42539.0,0.00016]
[1704079069818,1.88790941,42540.0,42539.0,0.00016]
[1704079070030,1.97316941,42540.0,42539.0,0.00016]
[1704079070239,1.88790941,42540.0,42539.0,0.00016]
[1704079070852,2.00156963,42540.0,42539.0,0.00016]
[1704079071881,1.88940324,42540.0,42539.0,0.00016]
[1704079072729,2.02960883,42540.0,42539.0,0.00016]
[1704079073136,1.88940324,42540.0,42539.0,0.00016]
[1704079074636,1.80378324,42540.0,42539.0,0.00016]
[1704079075124,1.77846324,42540.0,42539.0,0.00016]
[1704079075973,1.78657259,42540.0,42539.0,0.00016]
[1704079076242,1.76641259,42540.0,42539.0,0.00016]
[1704079076494,1.92628571,42540.0,42539.0,0.00016]
[1704079080173,1.92338571,42540.0,42539.0,0.00016]
[1704079080426,1.92628571,42540.0,42539.0,0.00016]
[1704079080636,1.87022533,42540.0,42539.0,0.00016]
[1704079081054,1.58886711,42540.0,42539.0,0.00016]
[1704079082160,0.64857711,42540.0,42539.0,0.00016]
[1704079082429,1.09544451,42540.0,42539.0,0.00016]
[1704079082648,1.03936211,42540.0,42539.0,0.00016]
[1704079083300,1.00336211,42540.0,42539.0,0.00016]
[1704079083736,1.03936211,42540.0,42539.0,0.00016]
[1704079084584,1.02136211,42540.0,42539.0,0.00016]
[1704079085452,1.00336211,42540.0,42539.0,0.00016]
[1704079085686,0.55021711,42540.0,42539.0,0.00016]
[1704079085894,1.02036211,42540.0,42539.0,0.00016]
[1704079086313,1.02136211,42540.0,42539.0,0.00016]
[1704079086728,1.03636211,42540.0,42539.0,0.00016]
[1704079086945,1.01836211,42540.0,42539.0,0.00016]
[1704079087158,1.02036211,42540.0,42539.0,0.00016]
[1704079087377,1.03536211,42540.0,42539.0,0.00016]
[1704079087597,1.11879556,42540.0,42539.0,0.00016]
[1704079088097,1.11879556,42540.0,42539.0,0.16278655]
[1704079088098,1.09842211,42540.0,42539.0,0.16278655]
[1704079088309,1.09842211,42540.0,42539.0,0.16988655]
[1704079088310,0.56521711,42540.0,42539.0,0.16988655]
[1704079088528,0.55021711,42540.0,42539.0,0.16988655]
[1704079088952,0.56521711,42540.0,42539.0,0.16988655]
[1704079089145,0.55021711,42540.0,42539.0,0.16988655]
[1704079089367,0.53321711,42540.0,42539.0,0.16988655]
[1704079089576,0.56421711,42540.0,42539.0,0.16988655]
[1704079090004,0.54721711,42540.0,42539.0,0.16988655]
[1704079090423,0.56321711,42540.0,42539.0,0.16988655]
[1704079090636,0.56321711,42540.0,42539.0,0.26988655]
[1704079096421,0.03,42540.0,42539.0,0.26988655]
[1704079097498,0.014,42540.0,42539.0,0.26988655]
[1704079097705,0.470101,42544.0,42543.0,0.16262655]
[1704079097921,0.99331811,42544.0,42543.0,0.16972655]
[1704079099164,1.00431811,42544.0,42543.0,0.17072655]
[1704079099597,1.01731811,42544.0,42543.0,0.17072655]
[1704079102493,1.01731811,42544.0,42543.0,0.071436]
[1704079102713,0.55721711,42544.0,42543.0,0.071436]
[1704079102907,1.02731811,42544.0,42543.0,0.17072655]
[1704079103738,1.02731811,42544.0,42543.0,0.071436]
[1704079104156,1.02731811,42544.0,42543.0,0.0081]
[1704079104400,1.02731811,42544.0,42543.0,0.001]
[1704079104601,1.09240756,42544.0,42543.0,0.001]
[1704079107791,1.23618321,42544.0,42543.0,0.001]
[1704079108018,1.71561256,42544.0,42543.0,0.001]
[1704079108226,1.8573989,42544.0,42543.0,0.001]
[1704079108435,1.8443989,42544.0,42543.0,0.001]
[1704079108655,1.73225256,42544.0,42543.0,0.001]
[1704079108866,0.03737345,42540.0,42539.0,0.00016]
[1704079109079,0.76373556,42540.0,42539.0,0.00016]
[1704079109291,1.14473556,42540.0,42539.0,0.00016]
[1704079109509,1.79013774,42540.0,42539.0,0.00016]
[1704079109724,1.81815014,42540.0,42539.0,0.00016]
[1704079109941,1.84627259,42540.0,42539.0,0.00016]
[1704079110163,1.84627259,42540.0,42526.0,0.966656]
[1704079110164,0.00070945,42531.0,42526.0,0.966656]
[1704079110395,0.70347811,42530.0,42528.0,0.0071]
[1704079110618,0.470267,42529.0,42528.0,0.0071]
[1704079110839,0.76120411,42529.0,42528.0,0.0071]
[1704079111308,0.76120411,42529.0,42526.0,0.02882]
[1704079111521,0.53321711,42528.0,42526.0,0.02882]
[1704079111741,0.470289,42527.0,42526.0,0.02882]
[1704079111988,1.06848611,42527.0,42526.0,0.02882]
[1704079112438,1.06848611,42527.0,42526.0,0.03592]
[1704079113597,1.06728611,42527.0,42526.0,0.03592]
[1704079113813,1.06728611,42527.0,42526.0,0.02882]
[1704079114474,1.08128611,42527.0,42526.0,0.02882]
[1704079114705,1.08128611,42527.0,42526.0,0.03592]
[1704079115353,1.03250611,42527.0,42526.0,0.03592]
[1704079116485,1.08500611,42527.0,42526.0,0.03592]
[1704079118890,1.03250611,42527.0,42526.0,0.03592]
[1704079119103,1.08416611,42527.0,42526.0,0.03592]
[1704079120008,1.22931816,42527.0,42526.0,0.02882]
[1704079120216,1.23002761,42527.0,42526.0,0.02882]
[1704079120425,1.08487556,42527.0,42526.0,0.03592]
[1704079121513,1.03321556,42527.0,42526.0,0.03592]
[1704079122149,0.56292656,42527.0,42526.0,0.03592]
[1704079122597,1.03250611,42527.0,42526.0,0.03592]
[1704079125913,0.56221711,42527.0,42526.0,0.03592]
[1704079126164,1.03250611,42527.0,42526.0,0.03592]
[1704079131439,1.18344754,42527.0,42526.0,0.03592]
[1704079131660,1.24763699,42527.0,42526.0,0.03592]
[1704079131872,1.09669556,42527.0,42526.0,0.03592]
[1704079139868,1.08139556,42527.0,42526.0,0.03592]
[1704079140298,1.03250611,42527.0,42526.0,0.03592]
[1704079140519,1.03321556,42527.0,42526.0,0.03592]
[1704079140740,1.09915556,42527.0,42526.0,0.03592]
[1704079142247,1.03321556,42527.0,42526.0,0.03592]
[1704079142678,1.08775556,42527.0,42526.0,0.03592]
[1704079143305,0.56292656,42527.0,42526.0,0.03592]
[1704079143513,1.08703556,42527.0,42526.0,0.03592]
[1704079153298,0.61674656,42527.0,42526.0,0.03592]
[1704079153509,1.08703556,42527.0,42526.0,0.03592]
[1704079155255,1.14304947,42527.0,42526.0,0.03592]
[1704079155494,1.08703556,42527.0,42526.0,0.03592]
[1704079155732,1.14314592,42527.0,42526.0,0.03592]
[1704079157376,1.17105642,42527.0,42526.0,0.03592]
[1704079157886,1.17120535,42527.0,42526.0,0.03592]
[1704079158427,1.08703556,42527.0,42526.0,0.03592]
[1704079158635,1.17120611,42527.0,42526.0,0.03592]
[1704079158848,1.17120611,42527.0,42526.0,0.02882]
[1704079159054,1.33262733,42527.0,42526.0,0.03592]
[1704079159263,1.17120611,42527.0,42526.0,0.03592]
[1704079161941,1.08703556,42527.0,42526.0,0.03592]
[1704079162152,1.14669956,42527.0,42526.0,0.02882]
[1704079162363,1.28560738,42527.0,42526.0,0.02882]
[1704079162568,1.39539433,42527.0,42526.0,0.02882]
[1704079162777,1.31469433,42527.0,42526.0,0.02882]
[1704079162993,1.39767433,42527.0,42526.0,0.02882]
[1704079163207,1.17465956,42527.0,42526.0,0.02882]
[1704079163424,1.15965956,42527.0,42526.0,0.02882]
[1704079163642,1.27586961,42527.0,42526.0,0.02882]
[1704079163857,1.16365956,42527.0,42526.0,0.02882]
[1704079164093,1.16265956,42527.0,42526.0,0.02882]
[1704079164322,0.69237056,42527.0,42526.0,0.02882]
[1704079164541,0.80458091,42527.0,42526.0,0.02882]
[1704079164732,1.27486991,42527.0,42526.0,0.02882]
[1704079165000,1.29286991,42527.0,42526.0,0.02882]
[1704079165205,1.27586991,42527.0,42526.0,0.02882]
[1704079165660,1.32069433,42527.0,42526.0,0.02882]
[1704079165882,1.40697433,42527.0,42526.0,0.02882]
[1704079166304,1.32069433,42527.0,42526.0,0.02882]
[1704079166523,1.29286367,42527.0,42526.0,0.02882]
[1704079166940,1.32069433,42527.0,42526.0,0.02882]
[1704079167366,1.18065956,42527.0,42526.0,0.02882]
[1704079167796,0.71037056,42527.0,42526.0,0.02882]
[1704079168652,1.32069433,42527.0,42526.0,0.02882]
[1704079168864,1.40619433,42527.0,42526.0,0.02882]
[1704079169311,1.40619433,42527.0,42523.0,0.02882]
[1704079169312,0.03737345,42524.0,42523.0,0.02882]
[1704079169537,0.74381256,42524.0,42523.0,0.02882]
[1704079169770,1.32047456,42524.0,42523.0,0.02882]
[1704079169982,1.62047456,42524.0,42523.0,0.02882]
[1704079170194,1.14725256,42524.0,42523.0,0.02882]
[1704079170442,1.28200224,42524.0,42523.0,0.02882]
[1704079170690,1.14181256,42524.0,42523.0,0.02882]
[1704079170931,1.1683551,42524.0,42523.0,0.02882]
[1704079171176,1.1712551,42524.0,42523.0,0.02882]
[1704079171413,1.14181256,42524.0,42523.0,0.02882]
[1704079171658,1.2439191,42524.0,42523.0,0.02882]
[1704079171909,1.2259191,42524.0,42523.0,0.02882]
[1704079172159,1.2439191,42524.0,42523.0,0.02882]
[1704079172419,1.2079191,42524.0,42523.0,0.02882]
[1704079172655,1.14181256,42524.0,42523.0,0.02882]
[1704079172901,1.19788329,42524.0,42523.0,0.02882]
[1704079173833,1.19788467,42524.0,42523.0,0.02882]
[1704079174064,1.21588467,42524.0,42523.0,0.02882]
[1704079174297,1.24392041,42524.0,42523.0,0.02882]
[1704079177194,1.15981256,42524.0,42523.0,0.02882]
[1704079177449,1.38679118,42524.0,42523.0,0.02882]
[1704079178102,1.41550468,42524.0,42523.0,0.02882]
[1704079178815,1.41550468,42524.0,42523.0,0.099256]
[1704079178816,0.29793061,42524.0,42523.0,0.099256]
[1704079179041,0.26921711,42524.0,42523.0,0.19854655]
[1704079179266,0.25121711,42524.0,42523.0,0.19854655]
[1704079180008,0.23321711,42524.0,42523.0,0.29854655]
[1704079180446,0.26421711,42524.0,42523.0,0.29854655]
[1704079181333,0.26421711,42524.0,42523.0,0.099256]
[1704079181551,0.25121711,42524.0,42523.0,0.099256]
[1704079181767,0.25121711,42524.0,42523.0,0.29854655]
[1704079181985,0.24421711,42524.0,42523.0,0.29854655]
[1704079182197,0.25321711,42524.0,42523.0,0.19854655]
[1704079182410,0.25321711,42524.0,42523.0,0.099256]
[1704079182632,0.25321711,42524.0,42523.0,0.19854655]
[1704079183285,0.25321711,42524.0,42523.0,0.29854655]
[1704079186603,0.02,42524.0,42523.0,0.29854655]
[1704079187997,0.25321711,42524.0,42523.0,0.03592]
[1704079188218,0.25321711,42524.0,42523.0,0.02882]
[1704079188219,1.30259939,42524.0,42523.0,0.02882]
[1704079188433,1.42105942,42524.0,42523.0,0.02882]
[1704079188645,1.42378877,42524.0,42523.0,0.02882]
[1704079188855,1.50098877,42524.0,42523.0,0.02882]
[1704079189102,1.42178877,42524.0,42523.0,0.02882]
[1704079189320,1.39369403,42524.0,42523.0,0.02882]
[1704079189536,1.42178877,42524.0,42523.0,0.02882]
[1704079189743,1.40378877,42524.0,42523.0,0.02882]
[1704079191059,1.42178877,42524.0,42523.0,0.02882]
[1704079191300,1.43978877,42524.0,42523.0,0.02882]
[1704079191515,1.49709751,42524.0,42523.0,0.02882]
[1704079191728,1.41165751,42524.0,42523.0,0.02882]
[1704079191934,1.52462877,42524.0,42523.0,0.02882]
[1704079192367,1.29959909,42524.0,42523.0,0.02882]
[1704079192608,1.41165067,42524.0,42523.0,0.02882]
[1704079192821,1.15159069,42524.0,42523.0,0.02882]
[1704079193010,1.03953911,42524.0,42523.0,0.02882]
[1704079197605,0.56921711,42524.0,42523.0,0.092156]
[1704079199145,0.56921711,42524.0,42523.0,0.19144655]
[1704079199772,0.56921711,42524.0,42523.0,0.29144655]
[1704079202709,0.56921711,42524.0,42523.0,0.29854655]
[1704079202909,0.26921711,42524.0,42523.0,0.29854655]
[1704079203332,0.036,42524.0,42523.0,0.29854655]
[1704079203533,0.018,42524.0,42523.0,0.29854655]
[1704079203732,0.47025,42531.0,42530.0,0.063336]
[1704079203934,0.70346711,42531.0,42530.0,0.063336]
[1704079204167,1.00346711,42531.0,42530.0,0.063336]
[1704079205168,1.06600711,42531.0,42530.0,0.063336]
[1704079206648,1.08400711,42531.0,42530.0,0.063336]
[1704079206866,1.06700711,42531.0,42530.0,0.063336]
[1704079207279,1.08400711,42531.0,42530.0,0.063336]
[1704079207494,1.06700711,42531.0,42530.0,0.063336]
[1704079207940,1.08400711,42531.0,42530.0,0.063336]
[1704079209211,1.03846711,42531.0,42530.0,0.063336]
[1704079210947,1.09588711,42531.0,42530.0,0.063336]
[1704079212230,0.470267,42529.0,42527.0,0.0071]
[1704079212446,0.59303711,42528.0,42527.0,0.0071]
[1704079212881,1.06331511,42528.0,42527.0,0.0071]
[1704079213107,0.59303711,42528.0,42527.0,0.0071]
[1704079214604,1.07531511,42528.0,42527.0,0.0071]
[1704079215446,1.08931511,42528.0,42527.0,0.0071]
[1704079216127,1.02949511,42528.0,42527.0,0.0071]
[1704079216327,0.55921711,42528.0,42527.0,0.26972655]
[1704079218754,0.026,42528.0,42527.0,0.26972655]
[1704079219604,0.012,42528.0,42527.0,0.26972655]
[1704079220013,0.470192,42536.0,42527.0,0.26972655]
[1704079220217,0.013,42528.0,42527.0,0.26972655]
[1704079220461,0.014,42528.0,42527.0,0.26972655]
[1704079220931,0.016,42528.0,42527.0,0.26972655]
[1704079222094,0.002,42528.0,42527.0,0.26972655]
[1704079222256,0.006,42528.0,42527.0,0.27072655]
[1704079223107,0.23921711,42528.0,42527.0,0.27072655]
[1704079224545,0.23921711,42528.0,42527.0,0.001]
[1704079224749,0.60491711,42528.0,42527.0,0.0081]
[1704079225448,0.60091711,42528.0,42527.0,0.0071]
[1704079225659,0.61791711,42528.0,42526.0,0.070436]
[1704079225863,0.53321711,42527.0,42526.0,0.070436]
[1704079226063,0.58703711,42527.0,42526.0,0.070436]
[1704079226499,0.58703711,42527.0,42526.0,0.0071]
[1704079226701,0.58703711,42527.0,42524.0,0.063336]
[1704079226852,0.58703711,42527.0,42523.0,0.78521055]
[1704079226853,0.58703711,42527.0,42525.0,0.063336]
[1704079227074,0.05442,42526.0,42525.0,0.063336]
[1704079227280,0.28763711,42526.0,42525.0,0.070436]
[1704079227475,0.58763711,42526.0,42525.0,0.070436]
[1704079227952,0.73255924,42526.0,42525.0,0.0071]
[1704079228411,0.73255924,42526.0,42524.0,0.063336]
[1704079228621,0.23321711,42525.0,42523.0,0.092156]
[1704079228833,0.28403711,42525.0,42524.0,0.070436]
[1704079229046,0.23321711,42525.0,42524.0,0.16972655]
[1704079230310,0.26321711,42525.0,42524.0,0.16972655]
[1704079232731,0.26321711,42525.0,42524.0,0.26972655]
[1704079232958,0.23321711,42525.0,42524.0,0.26972655]
[1704079233175,0.24721711,42525.0,42524.0,0.26972655]
[1704079233392,0.25921711,42525.0,42524.0,0.26972655]
[1704079235595,0.25921711,42525.0,42524.0,0.26262655]
[1704079235816,0.25921711,42525.0,42524.0,0.26972655]
[1704079236764,0.25921711,42525.0,42524.0,0.070436]
[1704079236972,0.62173711,42525.0,42523.0,0.092156]
[1704079237193,0.3,42524.0,42523.0,0.099256]
[1704079237432,0.59045711,42524.0,42523.0,0.092156]
[1704079237660,0.59045711,42524.0,42523.0,0.099256]
[1704079239516,0.60345711,42524.0,42523.0,0.099256]
[1704079239775,0.54621711,42524.0,42523.0,0.099256]
[1704079240076,0.55721711,42524.0,42523.0,0.099256]
[1704079242574,0.55721711,42524.0,42523.0,0.03592]
[1704079244293,0.73683494,42524.0,42523.0,0.03592]
[1704079244951,0.69009494,42524.0,42523.0,0.03592]
[1704079245170,0.73281494,42524.0,42523.0,0.03592]
[1704079245595,0.69009494,42524.0,42523.0,0.03592]
[1704079246022,0.55721711,42524.0,42523.0,0.03592]
[1704079251641,0.55721711,42524.0,42523.0,0.02882]
[1704079251642,1.08279911,42524.0,42523.0,0.02882]
[1704079251851,1.13882831,42524.0,42523.0,0.02882]
[1704079252064,1.08279911,42524.0,42523.0,0.02882]
[1704079252288,1.10650856,42524.0,42523.0,0.02882]
[1704079252502,1.21431237,42524.0,42523.0,0.02882]
[1704079252716,1.13026856,42524.0,42523.0,0.02882]
[1704079252933,1.21429534,42524.0,42523.0,0.02882]
[1704079253145,1.19029534,42524.0,42523.0,0.02882]
[1704079253358,1.22629534,42524.0,42523.0,0.02882]
[1704079254252,1.27327534,42524.0,42523.0,0.02882]
[1704079254673,1.29127534,42524.0,42523.0,0.02882]
[1704079255347,1.37396414,42524.0,42523.0,0.02882]
[1704079255562,1.24391256,42524.0,42523.0,0.02882]
[1704079255779,1.27298414,42524.0,42523.0,0.02882]
[1704079256213,1.24492148,42524.0,42523.0,0.02882]
[1704079256431,1.26292142,42524.0,42523.0,0.02882]
[1704079256681,1.17893256,42524.0,42523.0,0.02882]
[1704079256885,1.17184952,42524.0,42523.0,0.02882]
[1704079257099,1.20784952,42524.0,42523.0,0.02882]
[1704079257315,1.27383089,42524.0,42523.0,0.02882]
[1704079257788,1.25583089,42524.0,42523.0,0.02882]
[1704079258681,1.27383089,42524.0,42523.0,0.02882]
[1704079258895,1.29183089,42524.0,42523.0,0.02882]
[1704079259118,1.37487089,42524.0,42523.0,0.02882]
[1704079259328,1.29183089,42524.0,42523.0,0.02882]
[1704079260189,1.22716246,42524.0,42523.0,0.02882]
[1704079260444,1.20244246,42524.0,42523.0,0.02882]
[1704079260657,1.20226246,42524.0,42523.0,0.02882]
[1704079260873,1.20155301,42524.0,42523.0,0.02882]
[1704079261094,1.20226246,42524.0,42523.0,0.02882]
[1704079261312,1.14628552,42524.0,42523.0,0.02882]
[1704079263966,1.20226246,42524.0,42523.0,0.02882]
[1704079264409,1.22692246,42524.0,42523.0,0.02882]
[1704079264810,1.17094552,42524.0,42523.0,0.02882]
[1704079265223,1.25492689,42524.0,42523.0,0.02882]
[1704079267150,1.17094552,42524.0,42523.0,0.02882]
[1704079267571,1.4039611,42524.0,42523.0,0.02882]
[1704079268162,1.14736552,42524.0,42523.0,0.02882]
[1704079268364,1.06845607,42524.0,42523.0,0.092156]
[1704079269161,1.03953911,42524.0,42523.0,0.092156]
[1704079269373,1.08585911,42524.0,42523.0,0.092156]
[1704079269587,1.03953911,42524.0,42523.0,0.092156]
[1704079271644,1.08753911,42524.0,42523.0,0.092156]
[1704079273333,1.14355291,42524.0,42523.0,0.092156]
[1704079277452,1.17155982,42524.0,42523.0,0.092156]
[1704079278712,1.17155982,42524.0,42523.0,0.02882]
[1704079278928,1.22238014,42524.0,42523.0,0.02882]
[1704079279364,1.25045736,42524.0,42523.0,0.02882]
[1704079281509,1.13840578,42524.0,42523.0,0.02882]
[1704079281946,1.25045736,42524.0,42523.0,0.02882]
[1704079283584,1.27859546,42524.0,42523.0,0.02882]
[1704079283909,1.25058362,42524.0,42523.0,0.02882]
[1704079284114,1.25058309,42524.0,42523.0,0.02882]
[1704079284800,1.11926578,42524.0,42523.0,0.02882]
[1704079285244,0.64894378,42524.0,42523.0,0.02882]
[1704079285455,1.11926578,42524.0,42523.0,0.02882]
[1704079286330,1.23144309,42524.0,42523.0,0.02882]
[1704079286779,1.18050309,42524.0,42523.0,0.02882]
[1704079287914,1.06832578,42524.0,42523.0,0.02882]
[1704079288127,1.17980664,42524.0,42523.0,0.02882]
[1704079289449,1.15176834,42524.0,42523.0,0.02882]
[1704079290070,1.12371834,42524.0,42523.0,0.02882]
[1704079290288,1.06761633,42524.0,42523.0,0.02882]
[1704079291405,1.09143392,42524.0,42523.0,0.02882]
[1704079293125,1.06761633,42524.0,42523.0,0.02882]
[1704079296534,1.12233633,42524.0,42523.0,0.02882]
[1704079298026,1.23452664,42524.0,42523.0,0.02882]
[1704079298731,1.26257422,42524.0,42523.0,0.02882]
[1704079298967,1.23455722,42524.0,42523.0,0.02882]
[1704079299236,1.23455363,42524.0,42523.0,0.02882]
[1704079300873,1.26257422,42524.0,42523.0,0.02882]
[1704079301111,1.12233633,42524.0,42523.0,0.02882]
[1704079301462,1.23456093,42524.0,42523.0,0.02882]
[1704079301883,1.26257422,42524.0,42523.0,0.02882]
[1704079302328,1.23456308,42524.0,42523.0,0.02882]
[1704079303018,1.12233633,42524.0,42523.0,0.02882]
[1704079303420,1.26257422,42524.0,42523.0,0.02882]
[1704079304048,1.23456596,42524.0,42523.0,0.02882]
[1704079304466,1.23456971,42524.0,42523.0,0.02882]
[1704079304671,1.12233633,42524.0,42523.0,0.02882]
[1704079305120,1.23457143,42524.0,42523.0,0.02882]
[1704079305397,1.17985143,42524.0,42523.0,0.02882]
[1704079306251,1.17985143,42524.0,42523.0,0.092156]
[1704079306459,0.56921711,42524.0,42523.0,0.29854655]
[1704079307297,0.55121711,42524.0,42523.0,0.29854655]
[1704079307546,0.53321711,42524.0,42523.0,0.29854655]
[1704079307744,0.56221711,42524.0,42523.0,0.29854655]
[1704079307983,0.55121711,42524.0,42523.0,0.29854655]
[1704079308202,0.53321711,42524.0,42523.0,0.29854655]
[1704079308382,0.55321711,42524.0,42523.0,0.29854655]
[1704079317963,0.02,42524.0,42523.0,0.29854655]
[1704079320551,0.02,42524.0,42523.0,0.39854655]
[1704079322002,0.009,42524.0,42523.0,0.39854655]
[1704079322205,0.019,42524.0,42523.0,0.39854655]
[1704079322902,0.009,42524.0,42523.0,0.39854655]
[1704079323076,0.005,42524.0,42523.0,0.39854655]
[1704079323497,0.007,42524.0,42523.0,0.39854655]
[1704079323737,0.005,42524.0,42523.0,0.39854655]
[1704079323926,0.008,42524.0,42523.0,0.39854655]
[1704079324286,0.005,42524.0,42523.0,0.39854655]
[1704079324601,0.007,42524.0,42523.0,0.39854655]